Cogmind - Beta 16.1 @@@ ROGUE MODE // 2026.03.19 @ 15:01:46 Player: Minty Result: Destroyed by Y-64 Sentinel with Wave Gun Performance ------------- Evolutions (4) 2000 Regions Visited (11) 2200 Robots Destroyed (90) 450 Value Destroyed (3054) 3054 Prototype IDs (217) 4340 Alien Tech Used (0) 0 Bonus (3483) 3483 TOTAL SCORE: 15527 Bonus ------- Follower Combat Kills 197 Met Data Miner 300 Used Data Conduit 3000 Friendly Fire -14 Cogmind --------- Core Integrity 0/850 Matter 234/300 Energy 99/100 System Corruption 14% Temperature Cool (11) Movement Core (50) Location -5/Proximity Caves Parts ------- > --- POWER (1) -------- (None) > --- PROPULSION (5) --- (None) > --- UTILITY (7) ------ Armor Integrity Analyzer Hacking Suite > --- WEAPON (2) ------- Lance > --- INVENTORY (5) ---- Antimatter Cannon Rocket Array Dirty Bomb Trap Dirty Bomb Trap Fire Trap Peak State ------------ > --- POWER ------------ Light Angular Momentum Engine > --- PROPULSION ------- Aerolev Unit Aerolev Unit Aerolev Unit Aerolev Unit Aerolev Unit > --- UTILITY ---------- Advanced Heat Sink Large Storage Unit Improved Target Analyzer Armor Integrity Analyzer Improved Propulsion Shielding Hacking Suite Hacking Suite > --- WEAPON ----------- Antimatter Cannon Great Maul > --- INVENTORY -------- Light Angular Momentum Engine Light Angular Momentum Engine Aerolev Unit Aerolev Unit Aerolev Unit Gravmag System Hacking Suite System Shield Authchip [R/NC] Ion Burst Cannon Ion Burst Cannon Advanced EMP Blaster Rocket Array Rocket Array Great Axe [Rating: 64] Favorites ----------- Power Ion Engine Engine Ion Engine Power Core Light Nuclear Core Propulsion Aerolev Unit Leg Improved Aluminum Leg Wheel Wheel Hover Unit Aerolev Unit Utility Hacking Suite Device Disposable Heat Sink Storage Large Storage Unit Processor Armor Integrity Analyzer Hackware Hacking Suite Protection Improved Propulsion Shielding Weapon Great Maul Energy Gun Particle Gun Energy Cannon Subdweller Beam Cannon Ballistic Gun Assault Rifle Ballistic Cannon Antimatter Cannon Launcher Rocket Array Impact Weapon Great Maul Slashing Weapon Great Axe Piercing Weapon Lance Build | -11 -10 -10 -10 -8 -8 -8 -6 -6 -6 -6 -5 ------- Run | Yrd Mat Min Sub Mat Sto Rec Fac Low Low Dat Pro Slots Evolved 8 | . . . . 4 . . 4 . . . . Power . | . . . . . . . . . . . . Propulsion 3 | . . . . 2 . . 1 . . . . Utility 5 | . . . . 2 . . 3 . . . . Weapon . | . . . . . . . . . . . . Parts Attached 90 | . 9 7 6 25 19 . 11 . 4 1 8 Power 15 | . . 2 1 4 4 . 2 . 1 . 1 Engine 12 | . . 2 1 3 3 . 1 . 1 . 1 Core 3 | . . . . 1 1 . 1 . . . . Reactor . | . . . . . . . . . . . . Propulsion 22 | . 2 2 . 9 3 . 2 . 1 1 2 Treads . | . . . . . . . . . . . . Leg 5 | . 2 . . 3 . . . . . . . Wheel 2 | . . . . 2 . . . . . . . Hover 15 | . . 2 . 4 3 . 2 . 1 1 2 Flight . | . . . . . . . . . . . . Utility 24 | . 3 3 2 6 2 . 4 . 2 . 2 Device 9 | . 1 2 2 2 . . 1 . . . 1 Storage 3 | . 1 1 . 1 . . . . . . . Processor 3 | . . . . 1 . . 2 . . . . Hackware 6 | . . . . 1 2 . . . 2 . 1 Protection 3 | . 1 . . 1 . . 1 . . . . Artifact . | . . . . . . . . . . . . Weapon 29 | . 4 . 3 6 10 . 3 . . . 3 Energy Gun 10 | . 3 . . 2 5 . . . . . . Energy Cannon 4 | . . . 2 . 1 . . . . . 1 Ballistic Gun 4 | . 1 . . 3 . . . . . . . Ballistic Cannon 1 | . . . . . . . 1 . . . . Launcher 4 | . . . . . 3 . 1 . . . . Special Weapon . | . . . . . . . . . . . . Impact Weapon 2 | . . . . . 1 . . . . . 1 Slashing Weapon 3 | . . . 1 1 . . 1 . . . . Piercing Weapon 1 | . . . . . . . . . . . 1 Special Melee Weapon . | . . . . . . . . . . . . Unidentified Prototypes 12 | . . . 1 1 8 . 2 . . . . Parts Lost 32 | . . . 3 5 2 . 3 . 3 1 15 Power 8 | . . . 2 1 2 . 1 . . . 2 Propulsion 12 | . . . . 3 . . . . 1 1 7 Utility 10 | . . . 1 . . . 2 . 2 . 5 Weapon 2 | . . . . 1 . . . . . . 1 Highest Loss Streak 15 | . . . 1 4 1 . 2 . 3 1 15 To Critical Strikes . | . . . . . . . . . . . . Average Backups 10 | . 7 8 6 8 14 15 14 15 14 10 6 Power . | . 1 1 . 1 . . . 2 1 1 . Propulsion 2 | . 3 2 . . 4 6 4 3 3 2 . Utility 3 | . 2 5 4 4 2 1 2 3 2 1 . Weapon 3 | . . . . 2 7 8 6 6 6 5 4 Tool/Special . | . . . . . . . . . . . . Unused Backups 31 | . 6 3 3 1 14 . 3 . . . 1 Power 1 | . . . . 1 . . . . . . . Propulsion 9 | . 4 1 3 . 1 . . . . . . Utility 9 | . 2 2 . . 5 . . . . . . Weapon 12 | . . . . . 8 . 3 . . . 1 Tool/Special . | . . . . . . . . . . . . Average Slot Usage (%) 89 | . 91 100 91 79 89 90 93 95 94 93 52 Engine 8 | . 14 14 10 4 3 9 4 6 6 6 2 Core 1 | . . . . 3 4 . . . . . . Leg 6 | . 28 22 . 10 . . . . . . . Hover 22 | . . 5 27 9 36 36 33 33 33 32 14 Device 6 | . . 3 13 16 2 . . 2 6 6 3 Storage 10 | . 14 14 13 8 9 9 6 6 6 6 3 Processor 3 | . . . . 1 . . 10 13 13 13 8 Hackware 8 | . . . . 7 19 27 20 13 13 20 12 Protection 3 | . 7 10 . . 5 . 4 6 3 . . Energy Gun 4 | . 13 14 3 3 . . . . . . . Energy Cannon 3 | . . . 12 4 . . . . . . . Ballistic Gun 3 | . 13 14 1 4 . . . . . . . Impact Weapon 2 | . . . . . 8 9 5 6 5 2 . Slashing Weapon 2 | . . . 7 . . . 2 6 3 3 2 Peak Build Rating 64 | . 12 17 30 36 42 37 61 62 64 63 58 Average Rating 31 | . 9 12 21 29 35 37 55 59 59 58 31 On Entrance 34 | 6 6 12 17 30 33 37 37 57 62 57 58 Avg Prop Armor Cover (%) 8 | . . . . 9 . . 5 . . . . Naked Turns . | . . . . . . . . . . . . Heaviest Build 44 | 13 37 37 23 34 32 31 42 40 44 41 34 Greatest Support 45 | 20 26 26 24 45 32 32 40 40 41 41 41 Greatest Overweight (x) 4 | . 1 2 . 4 . . 1 . 1 . 2 Average Overweight (x) . | . . . . . . . . . . . . Largest Inventory Capacity 15 | . 15 15 8 15 15 15 15 15 15 15 15 Average Capacity 12 | . 10 13 8 10 15 15 15 15 15 15 11 Most Carried 15 | . 9 10 8 15 15 15 15 15 15 15 14 Average Carried 11 | . 7 8 7 9 14 15 14 14 14 14 9 Final Capacity 15 | 8 15 8 8 15 15 15 15 15 15 15 5 Final Carried 15 | 6 9 8 8 15 15 15 15 15 15 14 5 Class Distribution -------------------- 37% | Hacker-Mutant 35% | Scavenger-Mutant 26% | Mutant Dominant Class ---------------- Mutant | -10/Materials Mutant | -10/Mines Scavenger-Mutant | -10/Subcaves Scavenger-Mutant | -8/Materials Hacker-Mutant | -8/Storage Hacker-Mutant | -8/Recycling Hacker-Mutant | -6/Factory Hacker-Mutant | -6/Lower Caves Hacker-Mutant | -6/Lower Caves Hacker-Mutant | -6/Data Miner Mutant | -5/Proximity Caves Resources | -11 -10 -10 -10 -8 -8 -8 -6 -6 -6 -6 -5 ----------- Run | Yrd Mat Min Sub Mat Sto Rec Fac Low Low Dat Pro Matter Collected 1956 | 200 42 188 101 287 345 10 289 10 137 46 301 Remotely . | . . . . . . . . . . . . Salvage Created 3724 | . 72 35 149 607 1150 188 767 43 309 112 292 Parts 127 | . 4 2 16 36 19 6 23 4 10 . 7 Haulers Intercepted 9 | . . . . 1 6 . 2 . . . . Recyclers Shooed 3 | . 1 . . . 1 . 1 . . . . Parts Field Recycled . | . . . . . . . . . . . . Retrieved Matter . | . . . . . . . . . . . . Parts Self-Destructed 35 | . . . 19 . . . . 3 10 . 3 Prevented . | . . . . . . . . . . . . Parts Restored . | . . . . . . . . . . . . Kills | -11 -10 -10 -10 -8 -8 -8 -6 -6 -6 -6 -5 ------- Run | Yrd Mat Min Sub Mat Sto Rec Fac Low Low Dat Pro Combat Hostiles Destroyed 54 | . 2 1 5 9 9 3 8 1 6 4 6 Melee 11 | . . . 4 . 1 1 1 1 2 . 1 Guns 8 | . 2 1 . 5 . . . . . . . Cannons 6 | . . . 1 2 . . 2 . 1 . . AOE 18 | . . . . . 2 . 4 . 3 4 5 Classes Destroyed 18 | . 1 2 2 4 2 . 1 1 2 . 3 Worker 11 | . . 1 . 2 7 . 1 . . . . Tunneler 1 | . . . . . . . 1 . . . . Hauler 9 | . . . . 1 6 . 2 . . . . Recycler 9 | . . . . . 5 1 3 . . . . Minesweeper 1 | . . . . . . . . . 1 . . Operator 5 | . . . . 2 1 . 2 . . . . Watcher 1 | . . . . . 1 . . . . . . Swarmer 7 | . . . 2 . . . 4 . 1 . . Saboteur 1 | . . . . . . . . . . . 1 Grunt 15 | . 2 . . 2 6 . . . 3 . 2 Brawler 2 | . . . . . . . . . . . 2 Sentry 12 | . . . . 4 3 1 3 . 1 . . Demolisher 1 | . . . . . . . . . . . 1 Hunter 4 | . . . . 3 . . 1 . . . . Programmer 2 | . . . . . . . . 1 1 . . Enhanced Grunt 4 | . . . . . . . . . . 4 . Subdweller 5 | . . . 3 . . 2 . . . . . Samaritan 1 | . . . . . . . . . 1 . . Assembled 1 | . . 1 . . . . . . . . . Best Kill Streak 7 | . 2 1 2 3 7 1 4 1 3 4 6 Combat Bots Only 6 | . 2 1 2 2 2 1 4 1 3 4 6 Max Kills in Single Turn 3 | . 1 1 1 1 1 1 2 1 1 3 2 Gunslinging . | . . . . . . . . . . . . Exploded 3 | . . . . . 1 . 2 . 1 3 2 Melee 1 | . . . 1 . 1 1 1 1 1 . 1 Uniques/NPCs Destroyed . | . . . . . . . . . . . . Combat | -11 -10 -10 -10 -8 -8 -8 -6 -6 -6 -6 -5 -------- Run | Yrd Mat Min Sub Mat Sto Rec Fac Low Low Dat Pro Hostile Shots Fired 464 | . 30 3 48 70 60 13 145 . 38 5 52 Missed 178 | . 7 . 11 21 26 8 70 . 21 3 11 Hits 286 | . 23 3 37 49 34 5 75 . 17 2 41 Melee 2 | . . . . . . . . . . . 2 Projectile 284 | . 23 3 37 49 34 5 75 . 17 2 39 AOE 20 | . . . 1 . . . . . . . 19 Critical Strikes 7 | . 1 . . 1 2 . 1 . . . 2 Actively Blocked 2 | . . . . . 1 . 1 . . . . Part Disruptions 1 | . . . . . . . . . . . 1 Damage Taken 5000 | . 271 32 667 737 572 95 611 . 192 113 1710 Core 1419 | . 12 10 208 185 148 . 140 . 44 9 663 Absorbed by Shields . | . . . . . . . . . . . . Redirected to Shielding 293 | . . . . . 92 . 173 . 28 . . Regen/Repaired (Parts) 127 | . . . . . 127 . . . . . . Core Remaining (%) 49 | 100 . . 8 . . 39 . . . . . Volleys Fired 109 | . 13 6 10 38 5 . 18 . 7 4 8 Largest 2 | . 2 2 2 2 1 . 1 . 1 1 2 Hottest 200 | . 85 85 85 121 61 . 36 . 45 45 200 Shots Fired 158 | . 26 14 14 60 5 . 18 . 7 4 10 Gun 95 | . 26 14 8 44 3 . . . . . . Cannon 46 | . . . 6 16 . . 15 . 4 . 5 Launcher 17 | . . . . . 2 . 3 . 3 4 5 Special . | . . . . . . . . . . . . Kinetic 72 | . 13 7 4 29 . . 15 . 4 . . Thermal 69 | . 13 7 10 31 3 . . . . . 5 Explosive 17 | . . . . . 2 . 3 . 3 4 5 Electromagnetic . | . . . . . . . . . . . . Robot Hit Streak 12 | . 4 3 3 7 5 . 3 . 5 4 12 Robot Miss Streak 5 | . 4 2 2 4 . . 2 . 3 3 5 Penetration Max . | . . . . . . . . . . . . Secondary Targets 1 | . 1 . . . . . . . . . . Max Gunslinging Chain 1 | . 1 . . . . . . . . . . Shots Hit Robots 187 | . 12 6 21 34 42 12 28 1 8 5 18 Core Hits 140 | . 4 4 7 16 7 1 15 . 11 42 33 Critical Kills 6 | . 1 . . 3 1 . 1 . . . . Critical Parts Destroyed 18 | . . . . . 11 4 3 . . . . Critical Strikes 28 | . 1 . 2 3 12 4 6 . . . . Meltdown 3 | . . . . 3 . . . . . . . Destroy 1 | . 1 . . . . . . . . . . Blast 1 | . . . . . . . 1 . . . . Smash 20 | . . . . . 12 4 4 . . . . Sever 3 | . . . 2 . . . 1 . . . . Melee Attacks 160 | . . . 31 . 61 14 25 10 7 1 11 Impact 98 | . . . . . 60 14 17 1 4 . 2 Slashing 62 | . . . 31 . 1 . 8 9 3 1 9 Piercing . | . . . . . . . . . . . . Sneak Attacks 36 | . . . 1 . 20 2 9 1 2 1 . Combat Hostiles 2 | . . . . . . . 1 1 . . . Follow-up Attacks 2 | . . . . . . . 2 . . . . Damage Inflicted 10865 | . 167 95 707 925 3152 568 1944 92 584 1116 1515 Guns 787 | . 167 95 83 392 50 . . . . . . Cannons 1259 | . . . 113 533 . . 397 . 109 . 107 Explosions 2717 | . . . . . 205 . 347 . 254 1048 863 Melee 6098 | . . . 507 . 2897 568 1200 92 221 68 545 Ramming 4 | . . . 4 . . . . . . . . Kinetic 992 | . 99 64 55 268 . . 397 . 109 . . Thermal 1054 | . 68 31 141 657 50 . . . . . 107 Explosive 2577 | . . . . . 205 . 347 . 254 1048 723 Electromagnetic 140 | . . . . . . . . . . . 140 Impact 4539 | . . . . . 2897 568 912 . 74 . 88 Slashing 1559 | . . . 507 . . . 288 92 147 68 457 Piercing . | . . . . . . . . . . . . Highest Corruption 14 | . 1 1 3 . 3 3 . . . . 14 Average Corruption 2 | . 1 1 1 . 3 3 . . . . 12 Corruption Purged . | . . . . . . . . . . . . Corruption Blocked . | . . . . . . . . . . . . Effects 35 | . 1 7 7 . 9 3 . . . . 8 Message Errors 8 | . 1 2 3 . 1 . . . . . 1 Matter Fused 11 | . . . 3 . 4 1 . . . . 3 Heat Flow Errors 8 | . . 2 1 . 2 1 . . . . 2 Energy Discharges 1 | . . 1 . . . . . . . . . Parts Rejected 1 | . . . . . 1 . . . . . . Data Loss (minor) 1 | . . . . . . 1 . . . . . Data Loss (major) 2 | . . . . . 1 . . . . . 1 Misfires 2 | . . 2 . . . . . . . . . Weapon Failures 1 | . . . . . . . . . . . 1 Overload Shots 3 | . . . . 3 . . . . . . . Overflow Damage 2700 | . . . . 1 1738 279 434 42 42 8 156 Projectiles 6 | . . . . 1 . . 5 . . . . Explosions 17 | . . . . . . . . . . . 17 Melee 2677 | . . . . . 1738 279 429 42 42 8 139 Knockbacks 14 | . . . . . 5 3 6 . . . . Impact 13 | . . . . . 5 3 5 . . . . Kinetic 1 | . . . . . . . 1 . . . . Secondary . | . . . . . . . . . . . . Self-Inflicted Damage 238 | . . . 2 . . . . . . 23 213 Shots 8 | . . . . . . . . . . 2 6 Rammed 1 | . . . 1 . . . . . . . . Targets Rammed 1 | . . . 1 . . . . . . . . Kicked . | . . . . . . . . . . . . Crushed . | . . . . . . . . . . . . Highest Temperature 320 | . 162 320 169 190 284 129 8 . . . 129 Average Temperature 75 | . 72 146 82 33 95 69 3 . . . 56 Received Heat Transfer 939 | . 168 60 75 99 180 33 147 . 48 . 129 Effects 1 | . . 1 . . . . . . . . . Energy Bleed 1 | . . 1 . . . . . . . . . Siege Activations . | . . . . . . . . . . . . Martial Activations . | . . . . . . . . . . . . Shielding Activations . | . . . . . . . . . . . . Robots Disrupted . | . . . . . . . . . . . . Combat Hostiles . | . . . . . . . . . . . . Robots Corrupted 26 | . . . . . 16 3 7 . . . . Combat Hostiles 9 | . . . . . 6 2 1 . . . . Parts Fried 34 | . . . . . 19 3 12 . . . . Impact Corruptions 69 | . . . . . 46 8 15 . . . . Robots Melted 3 | . . . . 3 . . . . . . . Combat Hostiles 2 | . . . . 2 . . . . . . . Parts Melted 9 | . . . . 8 . . . . 1 . . Heat Transferred 877 | . 185 74 148 296 111 . . . . . 63 Parts Sabotaged . | . . . . . . . . . . . . Parts Stolen . | . . . . . . . . . . . . Parts Stripped . | . . . . . . . . . . . . Power Chain Reactions . | . . . . . . . . . . . . Alert | -11 -10 -10 -10 -8 -8 -8 -6 -6 -6 -6 -5 ------- Run | Yrd Mat Min Sub Mat Sto Rec Fac Low Low Dat Pro Maximum Alert Level 2 | . . . . . 1 . 2 . . . . Low Security (%) 79 | . 100 100 . 100 49 100 49 . . . . Level 1 18 | . . . . . 50 . 34 . . . . Level 2 2 | . . . . . . . 15 . . . . Level 3 . | . . . . . . . . . . . . Level 4 . | . . . . . . . . . . . . Level 5 . | . . . . . . . . . . . . High Security . | . . . . . . . . . . . . Max Security . | . . . . . . . . . . . . Peak Influence 432 | . 50 5 . 107 353 157 432 . . . . Initial 136 | . . . . . 27 136 92 . . . . Average 100 | . 12 . . 38 201 132 231 . . . . Influence Increases 2268 | . 50 5 67 319 706 26 595 30 150 . 320 Destroy 0b10 Robot/C 980 | . 40 . 40 180 240 20 200 20 120 . 120 Destroy 0b10 Robot/NC 195 | . . 5 . 25 100 5 45 . 5 . 10 Destroy Leader 278 | . 10 . 10 82 84 . 62 10 10 . 10 Allied During Kill 11 | . . . 2 . 9 . . . . . . Trap Triggered on 0b10 10 | . . . . . 10 . . . . . . Successful Hack 52 | . . . . 11 31 . 10 . . . . Disable Machine 90 | . . . . . 75 . 15 . . . . Anti-Garrison Action 150 | . . . . . . . 150 . . . . Destroy Structure 47 | . . . . 6 22 1 18 . . . . Advance Influence 50 | . . . . . . . 50 . . . . Partial Spotted 60 | . . . . . 30 . 30 . . . . Lose Combat Pursuer 345 | . . . 15 15 105 . 15 . 15 . 180 Influence Decreases 2183 | . 50 5 67 253 422 274 290 242 238 107 235 Entered New Map 610 | . . . . . 39 214 60 152 38 107 . Time Decay 1264 | . 50 5 67 219 323 60 180 90 170 . 100 Lost Part 249 | . . . . 34 20 . 30 . 30 . 135 Lost Ally 60 | . . . . . 40 . 20 . . . . Squads Dispatched 18 | . 1 . . 3 3 . 10 . . . 1 Investigation 5 | . 1 . . 1 1 . 2 . . . . Extermination . | . . . . . . . . . . . . Reinforcement 5 | . . . . 2 1 . 2 . . . . Assault 5 | . . . . . . . 4 . . . 1 Garrison 3 | . . . . . 1 . 2 . . . . Intercept . | . . . . . . . . . . . . Searches Triggered . | . . . . . . . . . . . . Construction Impeded . | . . . . . . . . . . . . Haulers Reinforced . | . . . . . . . . . . . . Active Scanning Responses . | . . . . . . . . . . . . Cargo Convoy Interrupts . | . . . . . . . . . . . . Stealth | -11 -10 -10 -10 -8 -8 -8 -6 -6 -6 -6 -5 --------- Run | Yrd Mat Min Sub Mat Sto Rec Fac Low Low Dat Pro Distress Signals 9 | . . 1 . . 2 1 . . . . 5 Communications Jammed . | . . . . . . . . . . . . Distress Signals . | . . . . . . . . . . . . Times Spotted 109 | . 5 4 12 12 30 3 16 . 8 4 15 Peak Tracking Total 10 | . 3 2 3 3 5 2 6 . 4 4 10 Tactical Retreats 19 | . . 2 2 1 6 1 1 . 1 . 5 Traps | -11 -10 -10 -10 -8 -8 -8 -6 -6 -6 -6 -5 ------- Run | Yrd Mat Min Sub Mat Sto Rec Fac Low Low Dat Pro Traps Triggered 4 | . . . . . 3 . . . . . 1 Indirectly . | . . . . . . . . . . . . Trap Hack Attempts . | . . . . . . . . . . . . Triggered . | . . . . . . . . . . . . Disarmed . | . . . . . . . . . . . . Reprogrammed . | . . . . . . . . . . . . Reused 2 | . . . 1 . 1 . . . . . . Traps Extracted . | . . . . . . . . . . . . Installed 3 | . . . 1 . 1 . . . . . 1 Triggered 1 | . . . . . 1 . . . . . . Most Traps Carried 4 | . . . 2 1 1 . . . 4 4 4 Machines | -11 -10 -10 -10 -8 -8 -8 -6 -6 -6 -6 -5 ---------- Run | Yrd Mat Min Sub Mat Sto Rec Fac Low Low Dat Pro Machines Disabled 8 | . . . . . 5 . 2 . . . 1 Max in Single Turn 2 | . . . . . 2 . 1 . . . 1 Garrison Access 1 | . . . . . . . 1 . . . . Machines Repaired . | . . . . . . . . . . . . Machines Dismantled . | . . . . . . . . . . . . Machines Sabotaged . | . . . . . . . . . . . . Overloaded Fab Kills . | . . . . . . . . . . . . Hacking | -11 -10 -10 -10 -8 -8 -8 -6 -6 -6 -6 -5 --------- Run | Yrd Mat Min Sub Mat Sto Rec Fac Low Low Dat Pro Machines Accessed 28 | . 1 . 1 3 14 1 4 . . 4 . Terminals 16 | . 1 . . 3 10 1 1 . . . . Fabricators 2 | . . . . . . . 2 . . . . Repair Stations 2 | . . . . . 2 . . . . . . Recycling Units 2 | . . . . . 1 . 1 . . . . Scanalyzers . | . . . . . . . . . . . . Garrison Access 1 | . . . . . 1 . . . . . . Total Hacks 120 | . 2 . 5 12 54 4 15 . . 28 . Successful 76 | . . . 5 5 30 . 8 . . 28 . Failed 43 | . 2 . . 7 23 4 7 . . . . Catastrophic 10 | . 1 . . 1 5 2 1 . . . . Database Lockouts 1 | . . . . . 1 . . . . . . Manual 43 | . . . . 5 28 4 6 . . . . Terminals 68 | . 2 . . 12 46 4 4 . . . . Fabricators 8 | . . . . . . . 8 . . . . Repair Stations 5 | . . . . . 5 . . . . . . Recycling Units 5 | . . . . . 2 . 3 . . . . Scanalyzers . | . . . . . . . . . . . . Garrison Access 1 | . . . . . 1 . . . . . . Terminal Hacks 61 | . . . 5 5 22 . 1 . . 28 . Record 17 | . . . 5 . 1 . . . . 11 . Part Schematic 11 | . . . . . 3 . . . . 8 . Robot Schematic 7 | . . . . . 1 . . . . 6 . Robot Analysis 2 | . . . . 1 1 . . . . . . Prototype ID Bank 4 | . . . . . 1 . . . . 3 . Open Door 4 | . . . . . 4 . . . . . . Branch Access Points 1 | . . . . 1 . . . . . . . Terminal Index 1 | . . . . . 1 . . . . . . Alert Level 3 | . . . . . 3 . . . . . . Locate Traps 3 | . . . . 1 1 . 1 . . . . Dispatch Records 1 | . . . . . 1 . . . . . . Maintenance Status 1 | . . . . . 1 . . . . . . Patrol Status 1 | . . . . . 1 . . . . . . Transport Status 1 | . . . . . 1 . . . . . . Zone Layout 4 | . . . . 2 2 . . . . . . Fabricator Hacks 2 | . . . . . . . 2 . . . . Load Schematic 2 | . . . . . . . 2 . . . . Repair Station Hacks 4 | . . . . . 4 . . . . . . Scan Component 2 | . . . . . 2 . . . . . . Repair 2 | . . . . . 2 . . . . . . Recycling Unit Hacks 5 | . . . . . 2 . 3 . . . . Process 1 | . . . . . . . 1 . . . . Report Inventory 2 | . . . . . 1 . 1 . . . . Retrieve Matter 1 | . . . . . . . 1 . . . . Retrieve Components 1 | . . . . . 1 . . . . . . Scanalyzer . | . . . . . . . . . . . . Garrison Access Hacks . | . . . . . . . . . . . . Unauthorized Hacks 4 | . . . . . 2 . 2 . . . . Terminals 2 | . . . . . 1 . 1 . . . . Botnet 1 | . . . . . . . 1 . . . . Disrupt 1 | . . . . . 1 . . . . . . Fabricators 1 | . . . . . . . 1 . . . . Recompile 1 | . . . . . . . 1 . . . . Repair Stations . | . . . . . . . . . . . . Recycling Units . | . . . . . . . . . . . . Scanalyzers . | . . . . . . . . . . . . Garrison Access 1 | . . . . . 1 . . . . . . Reprogram 1 | . . . . . 1 . . . . . . Data Cores Recovered . | . . . . . . . . . . . . Used . | . . . . . . . . . . . . Hacking Detections 15 | . 1 . . 3 7 1 3 . . . . Full Trace Events 4 | . 1 . . 1 . 1 1 . . . . Feedback Events 1 | . 1 . . . . . . . . . . Corruption 1 | . 1 . . . . . . . . . . Feedback Blocked . | . . . . . . . . . . . . Robot Schematics Acquired 7 | . . . . . 1 . . . . 6 . Robots Built . | . . . . . . . . . . . . Authchips . | . . . . . . . . . . . . Time . | . . . . . . . . . . . . Total Robot Build Rating . | . . . . . . . . . . . . Part Schematics Acquired 11 | . . . . . 3 . . . . 8 . Parts Built . | . . . . . . . . . . . . Authchips . | . . . . . . . . . . . . Time . | . . . . . . . . . . . . Total Part Build Rating . | . . . . . . . . . . . . Part Studies Acquired . | . . . . . . . . . . . . Parts Repaired 2 | . . . . . 2 . . . . . . Time 76 | . . . . . 76 . . . . . . Parts Recycled . | . . . . . . . . . . . . Recycled Matter 15 | . . . . . . . 15 . . . . Retrieved Matter 15 | . . . . . . . 15 . . . . Retrieved Components 3 | . . . . . 3 . . . . . . Parts Scanalyzed . | . . . . . . . . . . . . Part Schematics Acquired . | . . . . . . . . . . . . Parts Damaged . | . . . . . . . . . . . . Bothacking | -11 -10 -10 -10 -8 -8 -8 -6 -6 -6 -6 -5 ------------ Run | Yrd Mat Min Sub Mat Sto Rec Fac Low Low Dat Pro Used RIF Installer . | . . . . . . . . . . . . Robots Hacked . | . . . . . . . . . . . . Non-combat . | . . . . . . . . . . . . Combat . | . . . . . . . . . . . . Robot Hacks Applied . | . . . . . . . . . . . . Relay Couplers Released . | . . . . . . . . . . . . Fabnet Peak Effective % . | . . . . . . . . . . . . Robots Rewired 1 | . . . . . . . 1 . . . . Allies Hacked . | . . . . . . . . . . . . Hacks Repelled . | . . . . . . . . . . . . Allies | -11 -10 -10 -10 -8 -8 -8 -6 -6 -6 -6 -5 -------- Run | Yrd Mat Min Sub Mat Sto Rec Fac Low Low Dat Pro Total Allies 5 | . . 2 . . 2 . 1 . . . . Largest Group 2 | . . 2 2 . 2 . 1 . . . . Highest-Rated Group 49 | . . 45 49 . 32 . 41 . . . . Highest-Rated Ally 41 | . . 31 31 . 16 . 41 . . . . Total Orders . | . . . . . . . . . . . . Ally Attacks 44 | . . . 25 . 14 . 5 . . . . Total Damage 684 | . . . 338 . 196 . 150 . . . . Kills 8 | . . . 3 . 3 . 2 . . . . Allies Corrupted . | . . . . . . . . . . . . Allies Melted . | . . . . . . . . . . . . Intel | -11 -10 -10 -10 -8 -8 -8 -6 -6 -6 -6 -5 ------- Run | Yrd Mat Min Sub Mat Sto Rec Fac Low Low Dat Pro Active Infowar (turns) 912 | . . 149 5 553 203 . . . . . 2 Optics 5 | . . . 5 . . . . . . . . Structural 149 | . . 149 . . . . . . . . . Seismic 756 | . . . . 553 203 . . . . . . Jamming 2 | . . . . . . . . . . . 2 Robot Analysis Total 154 | . . . . 1 1 . . . . 152 . Derelict Logs Recovered 5 | . . . 1 . . . . 2 1 . 1 Drone Launches . | . . . . . . . . . . . . Drone Recoveries . | . . . . . . . . . . . . Exploration | -11 -10 -10 -10 -8 -8 -8 -6 -6 -6 -6 -5 ------------- Run | Yrd Mat Min Sub Mat Sto Rec Fac Low Low Dat Pro Turns Passed 4518 | . 205 737 968 564 737 121 365 186 346 69 220 Spaces Moved 4909 | 1 98 219 877 448 949 200 519 452 702 135 309 Core 151 | . . . . . . . . . . . 151 Treads . | . . . . . . . . . . . . Legs 287 | 1 98 75 . 113 . . . . . . . Wheels 119 | . . . . 119 . . . . . . . Hover 4352 | . . 144 877 216 949 200 519 452 702 135 158 Flight . | . . . . . . . . . . . . Fastest Speed 34 | 120 120 77 77 38 38 38 34 34 34 36 36 Average Speed 54 | 120 147 118 77 89 38 38 34 34 35 36 45 Slowest Speed 290 | 120 190 230 77 290 38 38 94 34 94 36 170 Overloaded Moves . | . . . . . . . . . . . . Propulsion Burnouts . | . . . . . . . . . . . . Robots Hopped 2 | . . . 2 . . . . . . . . Potential Cave-ins 4 | . . . . . . . . 4 . . . Cave-ins Triggered . | . . . . . . . . . . . . Exploration Rate (%) 47 | 1 16 35 62 29 92 50 12 72 75 77 46 Regions Visited 11 Branch Regions 8 Pre-discovered Areas 30 | . . . 1 . . . . 1 1 26 1 Known Exits Taken 2 | . . . . 1 1 . . . . . . Unknown Exits Taken 9 | 1 1 1 1 . . 1 1 1 1 1 . Scrap Searched 11 | . . 2 3 . . . . 2 2 . 2 Spaces Dug 25 | . . . . . 4 1 9 8 2 . 1 Terrain Destroyed 136 | . . . . 5 23 1 16 8 44 38 1 Melee 20 | . . . . . 4 1 4 8 2 . 1 Projectile 9 | . . . . 5 . . 4 . . . . AOE 107 | . . . . . 19 . 8 . 42 38 . Terrain Rammed . | . . . . . . . . . . . . Walls Destroyed . | . . . . . . . . . . . . Machines Disabled . | . . . . . . . . . . . . Actions | -11 -10 -10 -10 -8 -8 -8 -6 -6 -6 -6 -5 --------- Run | Yrd Mat Min Sub Mat Sto Rec Fac Low Low Dat Pro Total 6290 | . 136 685 1108 557 1208 216 641 467 774 145 353 Wait 834 | . . 444 171 18 104 3 39 5 45 2 3 Move 4894 | . 97 218 872 447 948 199 518 451 701 134 309 Hop 2 | . . . 2 . . . . . . . . Pick Up 58 | . 6 3 6 12 17 . 9 1 4 . . Fast Attach 47 | . 2 1 2 17 14 . 8 . . . 3 Attach 28 | . 2 . 2 2 3 . 6 1 3 2 7 Detach 18 | . 2 1 1 2 6 . 2 . 1 1 2 Swap 39 | . 6 6 3 7 6 . 4 . 5 1 1 Drop 84 | . 8 6 6 14 30 . 10 . 2 . 8 Fire 109 | . 13 6 10 38 5 . 18 . 7 4 8 Melee 155 | . . . 31 . 61 14 22 9 6 1 11 Ram 1 | . . . 1 . . . . . . . . Kick . | . . . . . . . . . . . . Crush . | . . . . . . . . . . . . Escape Stasis 13 | . . . . . 13 . . . . . . Rewire 5 | . . . . . . . 5 . . . . Trap 3 | . . . 1 . 1 . . . . . 1 Miscellaneous . | . . . . . . . . . . . . Route ------- -11/Scrapyard -10/Materials -10/Mines -10/Subcaves (discovered 3 exits: *Mat x2 / Rec) -8/Materials (discovered 3 exits: [*Fac] / *Sto x2) -8/Storage (discovered 2 exits: [*Fac] / *Rec) -8/Recycling -6/Factory -6/Lower Caves -6/Lower Caves -6/Data Miner -5/Proximity Caves History --------- Turn | Location | Event 1 | -11/Scrapyard | Discovered new exit (range 0) 1 | -11/Scrapyard | Entered Materials 161 | -10/Materials | Discovered new exit (range 10) 206 | -10/Materials | Entered Mines 213 | -10/Mines | Assembled infested the area 316 | -10/Mines | Build established: Mutant 926 | -10/Mines | Discovered new exit (range 8) 943 | -10/Mines | Entered Subcaves 943 | -10/Subcaves | Accompanied by 2 allies 944 | -10/Subcaves | Approached by a straggling Scientist 948 | -10/Subcaves | Led the pair of lost Derelicts to an unsafe place 1029 | -10/Subcaves | Disturbed a concealed Subdweller 1116 | -10/Subcaves | Build established: Scavenger-Mutant 1199 | -10/Subcaves | Shifting Twisted Machinery released Sub. Beam Cannon 1200 | -10/Subcaves | Shifting Twisted Machinery released Ripper 1200 | -10/Subcaves | Discovered new exit (range 12) 1202 | -10/Subcaves | A swath of the cavern ceiling suddenly collapsed 1310 | -10/Subcaves | Shifting Twisted Machinery released Battle Cannon 1311 | -10/Subcaves | Shifting Twisted Machinery released Sub. Monowheel 1356 | -10/Subcaves | A swath of the cavern ceiling suddenly collapsed 1462 | -10/Subcaves | Discovered new exit (range 12) 1494 | -10/Subcaves | Learned location of Zion (-7) 1494 | -10/Subcaves | Met a Zionite searching for "candidates" 1532 | -10/Subcaves | A Subdweller sparked back to life 1532 | -10/Subcaves | A Subdweller sparked back to life 1532 | -10/Subcaves | A Subdweller sparked back to life 1538 | -10/Subcaves | Core integrity fell below 50% 1566 | -10/Subcaves | Found Prototype Energy Cannon 1613 | -10/Subcaves | Learned 4 Materials zone layouts 1632 | -10/Subcaves | Shifting Twisted Machinery released Sub. Machine Gun 1691 | -10/Subcaves | Core integrity fell below 20% 1697 | -10/Subcaves | Visited Clippyterm 1699 | -10/Subcaves | Identified exit to Recycling 1699 | -10/Subcaves | Learned Research security intel 1707 | -10/Subcaves | Identified Powered Cannon 1708 | -10/Subcaves | Attached Powered Cannon, gained temporary slot: Power 1911 | -10/Subcaves | Entered Materials 1911 | -8/Materials | Evolved 4 slots: Propulsion x2, Utility x2 2142 | -8/Materials | Identified exit to Storage 2247 | -8/Materials | Discovered new exit (range 4) 2250 | -8/Materials | Lost 4 parts (1p2n1w) 2475 | -8/Materials | Entered Storage 2518 | -8/Storage | Repaired Lgt. Nuclear Core 2561 | -8/Storage | Allied Derelicts emerged from ambush trap array 2561 | -8/Storage | Garrison activated, responded to threat 2698 | -8/Storage | Used back door to open Recycling access 2698 | -8/Storage | Discovered exit to Recycling (range 3) 2756 | -8/Storage | Core integrity fell below 50% 2897 | -8/Storage | Build established: Hacker-Mutant 3000 | -8/Storage | Discovered new exit (range 15) 3149 | -8/Storage | Repaired Imp. Propulsion Shielding 3167 | -8/Storage | Central database locked down 3212 | -8/Storage | Entered Recycling 3237 | -8/Recycling | Entered Scraplab 3330 | -8/Recycling | Discovered new exit (range 8) 3333 | -8/Recycling | Entered Factory 3333 | -6/Factory | Evolved 4 slots: Propulsion x1, Utility x3 3441 | -6/Factory | Spotted B-75 Beast 3479 | -6/Factory | Discovered new exit (range 16) 3538 | -6/Factory | Garrison activated, responded to threat 3587 | -6/Factory | Found Prototype Launcher 3587 | -6/Factory | Identified Rocket Array 3591 | -6/Factory | Found Rocket Array 3683 | -6/Factory | First assault squad dispatched 3698 | -6/Factory | Entered Lower Caves 3848 | -6/Lower Caves | Learned 8 Factory zone layouts 3861 | -6/Lower Caves | Discovered new exit (range 4) 3884 | -6/Lower Caves | Entered another Lower Caves area 3925 | -6/Lower Caves | Encountered a Warlord checkpoint 4004 | -6/Lower Caves | Attracted the attention of an 0b10 checkpoint 4106 | -6/Lower Caves | Lost 3 parts (1n2u) 4225 | -6/Lower Caves | Discovered new exit (range 8) 4230 | -6/Lower Caves | Entered Data Miner 4230 | -6/Data Miner | Discovered new exit (range 6) 4237 | -6/Data Miner | Met Data Miner 4250 | -6/Data Miner | Learned location of Section 7 (-3) 4250 | -6/Data Miner | Acquired the access code to Warlord's prototype stash 4253 | -6/Data Miner | Received God Mode back door access code from Data Miner 4271 | -6/Data Miner | Interfaced with the Data Conduit 4299 | -6/Data Miner | Entered Proximity Caves 4348 | -5/Proximity Caves | Attracted the attention of an 0b10 outpost 4394 | -5/Proximity Caves | System corruption reached 10% 4403 | -5/Proximity Caves | Core integrity fell below 50% 4440 | -5/Proximity Caves | Core integrity fell below 20% 4468 | -5/Proximity Caves | Lost 15 parts (2p7n5u1w) 4480 | -5/Proximity Caves | Lost 4 allies 4508 | -5/Proximity Caves | Unaware initiated a cargo recovery operation 4519 | -5/Proximity Caves | Destroyed by Y-64 Sentinel with Wave Gun Last Messages --------------- 04465_ Found Lance. 04465_ Found 53 Matter. 04466_ Acquired 53 matter. 04467_ Acquired Lance. 04469_ Acquired Imp. Transmission Jammer. 04471_ System corrupted: Heat flow error (+166). 04471_ Dropped Imp. Transmission Jammer. 04492_ System corrupted: Matter fused (-10). 04498_ 69-S2Q(k) breaks down the debris. 04501_ Searching scrap... 04501_ Found Imp. Thermal Generator. 04501_ Found 63 Matter. 04502_ Acquired 63 matter. 04508_ ALERT: Cargo recovery in progress. Unregistered derelicts vacate Proximity Caves. 04513_ Acquired 4 matter. 04515_ Acquired 5 matter. 04516_ System corrupted: Heat flow error (+113). 04516_ Acquired 5 matter. 04517_ Acquired 4 matter. Map ----- +----------------------------------------------------+ | ?????????????????????????????????????????????????? | | ?????????????????????????????????????????????????? | | ?????????????????????????????????????????????????? | | ?????????????????????????????????????????????????? | | ?????##?#????????????????????????????????????????? | | ?????# # #???????????????????????????????????????? | | ?????? # ?????###???????????????????????????????? | | ??????? #???? ???????????????????????????????? | | ??????? #??# ???????????????????????????????? | | ???????? ?? #???????????????????????????????? | | ????????# #?? ###?????????????????????????????? | | ????????# #?? ??????????????????????????????? | | ????????# #?? #??????????????????????????????? | | ?????#### #### #???????????????????????????????? | | ?????# ## #????????????????????????????????? | | ????????# #????????????????????????????????? | | ?????????# #######??????????????????????????? | | ?????????# # #????????????????????????### | | ########## #### #????????????????????????# | | ! #??####### #?????????????? #????????# | | ########## #????????# #???????????? #?????????# | | ?????????# #????????# #?????????? #?????????# | | ?????????# #????????# #???????? #?????????# | | ?????????# #????????# #?????? Y #???????????# | | ?????????# #????????# ##### #?????????### | | ?????????# ????????# @ #????????# | | ?????????###????????# ##### $ #????????# | | ??????????????????? #?????? #????????# | | ?????????????????? % ##???????? #????????# | | ????????????????? % #???????????? #???????# | | ??????????????? #???????????????###???????# | | ?????????????? #??????????????????????????# % | | ?????????????#####???????????????????????????# | | ????????????????????????????????????????###### | | ????????????????????????????????????????# | | ????????????????????????????????????????# | | ######################################### | | + | | + | | + | | ! + | | + | | ######################################### | | ????????????????????????????????????????# | | ????????????????????????????????????????# | | ????????????????????????????????????????# | | ????????????????????????????????????????# | | ????????????????????????????????????????# | | ????????????????????????????????????????# | | ????????????????????????????????????????# | +----------------------------------------------------+ Best States ------------- Heat Dissipation 56 Coolant Potential 50 Energy Generation 18 Energy Capacity 265 Matter Stores 300 Matter Capacity 300 Sight Range 21 Terrain Scan Density 10 Jamming Range 14 Armor Coverage 225 Propulsion Shielding 66 Evasion (%) 58 Target Analysis 6 Armor Integrity Analysis 30 Offensive Hacking 20 Defensive Hacking 10 Authchip Count 1 Item Schematics ----------------- VSS Leg | -8/Storage | Hacked Machine Analyzer | -8/Storage | Hacked Com. Matter Pod | -8/Storage | Hacked Combat Drone Bay | -6/Data Miner | Free Lgt. Regenerative Plating | -6/Data Miner | Free Enh. Flexi-carbon Leg | -6/Data Miner | Free Prc. Energy Filter | -6/Data Miner | Free Cld. Plasma Rifle | -6/Data Miner | Free Adv. VSS Leg | -6/Data Miner | Free Adv. Coolant Injector | -6/Data Miner | Free Force Lance | -6/Data Miner | Free Robot Schematics ------------------ M-28 Smith | -8/Storage | Hacked R-10 Processor | -6/Data Miner | Free B-48 Gladiator | -6/Data Miner | Free G-50 Soldier | -6/Data Miner | Free G-67 Veteran | -6/Data Miner | Free W-44 Eye | -6/Data Miner | Free L-61 Swordsman | -6/Data Miner | Free Fabricated ------------ Nothing Repaired ---------- Lgt. Nuclear Core | 30% | -8/Storage Imp. Propulsion Shielding | 8% | -8/Storage Studied --------- None Alien Tech Used ----------------- None Achievements -------------- None Challenges ------------ None Game ------ Seed ProtonChromaticInsulator Manual? 0 Play Time 00:45:41 Cumulative 1277.1 hours Start 2026.03.19 @ 14:06:49 End 2026.03.19 @ 15:01:46 Sessions 1 Manual Loads 0 Difficulty Rogue Special Mode None Game No. 1567 Rogue 1283 Adventurer 124 Explorer 160 Win Type - Total 62 Types 48/0/8/4/1/0/0/1/0/0 Lore% 93 Gallery% 83 Achievement% 69 Wizard Run 0 Options --------- Layout 0 ASCII 0 Keyboard 1 Movement Numpad Keybinds 0 Fullscreen 2 Font 18/X11 Map View 76x50 Zoom Use 0% Tactical HUD 1 Map Filters NONE Filters NONE Steam 1 RUN: bc132379-c6af-4a07-94e7-780260847dbf